bitfinex-derivatives/quotes_ETHF0:USTF0_20240924
["timestamp","ask_amount","ask_price","bid_price","bid_amount"]
[1727206803570,2.59994186,2643.8,2643.5,1.6083]
[1727206803870,2.59994186,2643.8,2643.6,0.37828]
[1727206804263,2.59994186,2643.8,2643.5,1.23]
[1727206804264,2.59994186,2643.8,2643.7,3.2078]
[1727206804471,1.84824186,2643.8,2643.7,3.2078]
[1727206804669,1.13576,2643.8,2643.7,3.2078]
[1727206804868,0.7575,2643.8,2643.7,3.2078]
[1727206805067,0.7575,2643.8,2643.7,3.58607]
[1727206805271,0.7575,2643.8,2643.6,2.66]
[1727206805572,0.7575,2643.8,2643.5,0.3783]
[1727206806176,0.7575,2643.8,2643.7,3.2078]
[1727206807770,1.13576,2643.8,2643.7,3.2078]
[1727206807971,0.7575,2643.8,2643.7,3.2078]
[1727206809775,1.13576,2643.8,2643.7,3.2078]
[1727206815475,2.62020186,2643.8,2643.7,3.2078]
[1727206816875,3.56585186,2643.8,2643.7,3.2078]
[1727206817467,2.62020186,2643.8,2643.7,3.2078]
[1727206818274,3.56585186,2643.8,2643.7,3.2078]
[1727206818670,7.34825186,2643.8,2643.7,3.2078]
[1727206818871,5.86381,2643.8,2643.7,3.2078]
[1727206819276,0.37831,2643.5,2643.4,3.2078]
[1727206819469,0.98634057,2643.5,2643.4,3.58611]
[1727206819678,0.98634057,2643.6,2643.5,0.3783]
[1727206820572,1.47951086,2643.7,2643.6,0.37829]
[1727206821379,1.85778086,2643.7,2643.6,0.37829]
[1727206822489,1.47951086,2643.7,2643.6,0.37829]
[1727206823475,1.13576,2643.8,2643.6,0.37829]
[1727206823675,0.7575,2643.8,2643.4,5.8678]
[1727206823876,0.37829,2643.6,2643.4,3.5861]
[1727206824188,0.3783,2643.5,2643.4,3.5861]
[1727206825083,0.3783,2643.5,2643.4,3.2078]
[1727206827889,1.32406,2643.5,2643.4,3.2078]
[1727206828493,4.72896,2643.5,2643.1,1.99145]
[1727206828695,0.37834,2643.3,2643.1,1.99145]
[1727206828891,0.37834,2643.3,2643.2,0.37834]
[1727206829093,0.37834,2643.3,2643.1,1.6131]
[1727206829388,0.37834,2643.2,2643.1,1.99145]
[1727206830384,0.37834,2643.2,2643.1,1.6131]
[1727206831091,0.37834,2643.2,2643.1,1.99146]
[1727206831479,0.37834,2643.2,2643.1,1.6131]
[1727206833595,0.37834,2643.2,2643.1,1.99146]
[1727206836198,0.4019,2643.3,2643.1,1.99146]
[1727206836401,0.37834,2643.2,2643.1,1.99146]
[1727206838397,1.38832616,2643.3,2643.1,1.99146]
[1727206838596,1.38832616,2643.3,2643.1,1.6131]
[1727206838597,0.4019,2643.3,2643.1,1.6131]
[1727206838806,0.4019,2643.3,2643.1,1.99145]
[1727206839103,0.37834,2643.2,2643.1,1.99145]
[1727206844202,1.36476616,2643.2,2643.1,1.99145]
[1727206845613,0.37834,2643.2,2643.1,1.99145]
[1727206845911,1.36954373,2643.2,2643.1,1.99145]
[1727206846599,1.36954373,2643.2,2643.1,0.37835]
[1727206847009,0.37836,2643.1,2643.0,4.4378]
[1727206847204,1.73463891,2643.1,2643.0,4.81617]
[1727206847621,0.74336,2643.1,2643.0,5.80564793]
[1727206847903,1.35671737,2643.1,2643.0,5.80564793]
[1727206848110,1.35671012,2643.1,2643.0,5.80564793]
[1727206848314,2.22287086,2643.1,2643.0,4.81617]
[1727206850107,0.74336,2643.1,2643.0,4.4378]
[1727206850313,2.22287086,2643.1,2643.0,4.4378]
[1727206851104,0.74336,2643.1,2643.0,4.4378]
[1727206851300,1.73490123,2643.1,2643.0,4.4378]
[1727206851501,2.22287086,2643.1,2643.0,4.4378]
[1727206851706,2.22287086,2643.1,2643.0,3.2078]
[1727206853617,3.16877086,2643.1,2643.0,3.2078]
[1727206854508,5.34467086,2643.1,2643.0,3.2078]
[1727206854711,5.34467086,2643.1,2642.7,4.57957793]
[1727206854712,0.37839,2642.9,2642.7,4.57957793]
[1727206854913,2.14688586,2642.8,2642.7,4.57957793]
[1727206855219,2.14691963,2642.8,2642.7,4.57957793]
[1727206855909,1.1551,2642.8,2642.7,3.5901]
[1727206856109,2.64277879,2642.8,2642.7,3.5901]
[1727206856521,2.64277879,2642.8,2642.7,3.2078]
[1727206859524,1.1551,2642.8,2642.7,3.2078]
[1727206859917,1.1551,2642.8,2642.7,4.81621]
[1727206859918,0.7767,2642.8,2642.7,4.81621]
[1727206860118,1.76794952,2642.8,2642.7,4.81621]
[1727206860620,1.38454952,2642.8,2642.7,4.81621]
[1727206861821,0.99124952,2642.8,2642.7,4.81621]
[1727206862025,0.99124952,2642.9,2642.8,0.3784]
[1727206862231,0.99124952,2642.9,2642.8,0.7617]
[1727206862534,0.99124952,2642.9,2642.8,1.1559]
[1727206865626,0.99124952,2643.0,2642.9,0.37839]
[1727206865939,1.48767879,2643.1,2643.0,1.60837]
[1727206866229,1.87657879,2643.2,2643.1,0.37836]
[1727206866419,1.87657879,2643.2,2643.1,1.60836]
[1727206866617,1.87657879,2643.2,2643.1,1.99416]
[1727206866823,1.48767879,2643.2,2643.1,1.99416]
[1727206867024,0.99124573,2643.4,2643.1,9.90673501]
[1727206867224,0.99124573,2643.4,2643.3,4.81613]
[1727206867530,1.48767879,2643.6,2643.5,0.3783]
[1727206867733,1.48767879,2643.6,2643.5,1.6083]
[1727206868931,1.1864,2643.7,2643.6,0.37829]
[1727206868932,0.99106205,2643.7,2643.6,0.37829]
[1727206869136,0.99106205,2643.7,2643.6,3.96089]
[1727206869330,0.99106205,2643.7,2643.6,4.71329]
[1727206869837,0.99106205,2643.7,2643.6,4.33849]
[1727206870333,1.48767879,2643.9,2643.7,0.37827]
[1727206870334,0.99106205,2643.8,2643.7,0.37827]
[1727206870630,1.86591879,2643.9,2643.7,0.37827]
[1727206870826,1.48767879,2643.9,2643.8,0.37826]
[1727206871128,1.86423763,2643.9,2643.7,0.37826]
[1727206872235,0.99051867,2643.8,2643.7,0.37826]
[1727206873536,1.36877867,2643.8,2643.7,0.01828677]
[1727206873835,2.80990763,2643.8,2643.7,0.01828677]
[1727206874033,1.32391,2643.8,2643.7,0.01828677]
[1727206874226,2.80960805,2643.8,2643.7,0.01828677]
[1727206874932,6.59200805,2643.8,2643.7,0.01828677]
[1727206875131,6.59188738,2643.8,2643.7,0.01828677]
[1727206875638,5.10631,2643.8,2643.7,0.01828677]
[1727206876028,3.7824,2643.8,2643.7,0.39655677]
[1727206876228,3.7824,2643.8,2643.7,0.01828677]
[1727206876229,2.35895464,2643.8,2643.7,0.01828677]
[1727206876429,3.58895464,2643.8,2643.7,0.01828677]
[1727206876732,5.03195475,2643.8,2643.7,0.01828677]
[1727206878140,0.37826,2643.8,2643.7,0.01828677]
[1727206878328,1.98046309,2643.9,2643.8,0.37826]
[1727206878529,2.35870309,2643.9,2643.8,0.39654677]
[1727206878735,1.98046309,2643.9,2643.8,0.01828677]
[1727206878934,2.35870309,2643.9,2643.8,0.01828677]
[1727206879638,3.30432309,2643.9,2643.8,0.01828677]
[1727206879941,0.37824,2643.9,2643.8,0.01828677]
[1727206880437,2.35832631,2643.9,2643.8,0.01828677]
[1727206880838,3.30394631,2643.9,2643.8,0.01828677]
[1727206882733,3.75428568,2643.9,2643.8,0.01828677]
[1727206882934,8.03196631,2643.9,2643.8,0.01828677]
[1727206883533,9.26196631,2643.9,2643.8,0.01828677]
[1727206883728,8.31634631,2643.9,2643.8,0.01828677]
[1727206885240,9.26196631,2643.9,2643.8,0.01828677]
[1727206887941,15.26196631,2643.9,2643.8,0.01828677]
[1727206888840,13.28188,2643.9,2643.8,0.01828677]
[1727206889746,5.10626,2643.9,2643.8,0.01828677]
[1727206890536,0.37824,2643.9,2643.8,0.01828677]
[1727206891339,0.37824,2643.9,2643.8,0.39654677]
[1727206891551,0.37824,2643.9,2643.8,0.01828677]
[1727206891842,0.37824,2643.9,2643.8,0.39654677]
[1727206892738,0.37824,2643.9,2643.8,0.01828677]
[1727206893849,0.3994,2644.0,2643.8,1.62653677]
[1727206894046,0.3994,2644.0,2643.9,4.81604]
[1727206894246,0.37822,2644.1,2644.0,0.37823]
[1727206894445,0.37823,2644.0,2643.9,3.2078]
[1727206894747,0.37823,2644.0,2643.9,3.22608677]
[1727206894748,0.76423,2644.0,2643.9,3.22608677]
[1727206894953,1.1696,2644.0,2643.9,3.22608677]
[1727206895248,1.1696,2644.0,2643.9,3.60432677]
[1727206895446,1.54783,2644.0,2643.9,3.22608677]
[1727206896748,1.54783,2644.0,2643.9,3.60432677]
[1727206897553,1.54783,2644.0,2643.9,3.22608677]
[1727206898253,1.54783,2644.0,2643.9,3.60432677]
[1727206898451,1.54783,2644.0,2643.9,3.22608677]
[1727206899857,2.53682134,2644.0,2643.9,3.22608677]
[1727206900252,3.48240134,2644.0,2643.9,3.22608677]
[1727206900649,9.93531743,2644.0,2643.9,0.01828677]
[1727206900954,9.93531743,2644.0,2643.4,0.3699]
[1727206900955,0.3783,2643.5,2643.4,0.3699]
[1727206901151,1.36745245,2643.6,2643.5,0.3783]
[1727206901544,0.3783,2643.5,2643.4,1.97821]
[1727206901855,0.3783,2643.5,2643.4,0.3699]
[1727206902361,1.141,2643.5,2643.4,0.3699]
[1727206902954,2.13016245,2643.5,2643.4,0.3699]
[1727206904154,2.52736245,2643.5,2643.4,0.3699]
[1727206905759,3.02194367,2643.5,2643.4,0.3699]
[1727206906349,3.02194367,2643.5,2643.3,4.4378]
[1727206906350,0.37831,2643.4,2643.3,4.4378]
[1727206906655,1.3685918,2643.4,2643.3,4.4378]
[1727206907254,0.37831,2643.4,2643.3,4.4378]
[1727206907455,0.37831,2643.4,2643.3,4.81613]
[1727206907652,0.37831,2643.4,2643.3,4.4378]
[1727206908352,0.37831,2643.4,2643.3,4.81613]
[1727206908353,1.86205367,2643.4,2643.3,4.81613]
[1727206909452,0.37831,2643.4,2643.3,4.81613]
[1727206909657,1.86205367,2643.4,2643.3,4.81613]
[1727206910254,2.92430991,2643.6,2643.3,4.4378]
[1727206910255,2.35686991,2643.6,2643.3,4.4378]
[1727206910562,2.35686991,2643.6,2643.4,1.60831]
[1727206910563,0.3783,2643.5,2643.4,1.60831]
[1727206911452,2.35686991,2643.5,2643.4,1.60831]
[1727206912263,2.35686991,2643.5,2643.4,0.37831]
[1727206913266,0.37831,2643.4,2643.3,3.58612]
[1727206913567,1.48736956,2643.4,2643.3,3.58612]
[1727206913767,1.86565217,2643.5,2643.4,0.37831]
[1727206914071,0.37831,2643.5,2643.4,1.60831]
[1727206914364,1.97856991,2643.6,2643.4,1.60831]
[1727206914365,2.35685991,2643.6,2643.5,0.3783]
[1727206914571,0.37829,2643.6,2643.5,1.60829]
[1727206914956,0.3783,2643.5,2643.4,1.60831]
[1727206915265,1.86554718,2643.5,2643.4,1.60831]
[1727206915955,1.86554718,2643.5,2643.4,0.37831]
[1727206919464,0.37831,2643.4,2643.3,4.57344229]
[1727206919666,1.36994869,2643.4,2643.3,4.57344229]
[1727206920363,0.99163869,2643.4,2643.3,4.57344229]
[1727206921473,0.99163869,2643.4,2643.3,5.73107307]
[1727206921666,0.99163869,2643.4,2643.3,4.57344229]
[1727206922169,0.99163869,2643.4,2643.3,8.35664229]
[1727206922372,0.99163869,2643.5,2643.4,0.37831]
[1727206922569,0.99163869,2643.5,2643.4,2.59806871]
[1727206922767,1.86553718,2643.6,2643.5,0.3783]
[1727206922768,1.48724718,2643.6,2643.5,0.3783]
[1727206922988,1.86553718,2643.6,2643.5,0.3783]
[1727206923271,1.48724718,2643.6,2643.5,0.3783]
[1727206923972,2.35684991,2643.7,2643.6,0.37829]
[1727206924171,0.3783,2643.6,2643.5,0.37829]
[1727206925068,0.3692,2643.6,2643.5,0.74969]
[1727206925269,1.85661959,2643.6,2643.5,0.74969]
[1727206925862,2.23490959,2643.6,2643.5,0.74969]
[1727206926078,0.74749,2643.6,2643.5,0.74969]
[1727206926668,0.3692,2643.6,2643.5,0.74969]
[1727206927068,1.85670873,2643.6,2643.5,0.74969]
[1727206927973,0.37831,2643.4,2643.3,5.1198137]
[1727206928771,1.86580273,2643.4,2643.3,4.13005499]
[1727206931485,1.48749273,2643.4,2643.3,3.58612]
[1727206932572,1.86580273,2643.4,2643.3,3.58612]
[1727206932774,1.48749273,2643.4,2643.3,3.58612]
[1727206932972,1.86580273,2643.4,2643.3,3.58612]
[1727206934786,1.86580273,2643.4,2643.3,4.81612]
[1727206935588,1.86580273,2643.4,2643.3,5.3600882]
[1727206935589,1.48749273,2643.4,2643.3,5.3600882]
[1727206935884,1.48749273,2643.6,2643.5,0.3783]
[1727206936081,1.48749273,2643.7,2643.6,0.37829]
[1727206936287,0.99160633,2643.7,2643.6,8.69191458]
[1727206936580,0.99160633,2643.8,2643.7,0.37827]
[1727206936784,0.99160633,2643.8,2643.7,2.44585584]
[1727206936982,0.99160633,2643.8,2643.7,6.22825584]
[1727206937182,0.99160633,2643.8,2643.7,7.21755141]
[1727206937484,0.99160633,2643.8,2643.7,5.51636557]
[1727206937682,0.99160633,2643.8,2643.7,6.46205557]
[1727206937882,0.3994,2643.9,2643.7,6.46205557]
[1727206937883,0.99160633,2643.9,2643.8,0.37826]
[1727206938092,0.99160633,2644.1,2643.8,8.722457]
[1727206938391,0.99160633,2644.1,2644.0,5.42635864]
[1727206938888,0.99160633,2644.2,2644.1,0.37821]
[1727206939081,0.99080652,2644.2,2644.1,1.23]
[1727206939385,0.99080652,2644.2,2644.1,1.60821]
[1727206942084,0.99080652,2644.2,2644.1,1.23]
[1727206943279,1.36900652,2644.2,2644.1,1.23]
[1727206943482,0.99080652,2644.2,2644.1,1.60821]
[1727206943786,0.3782,2644.2,2644.1,1.23]
[1727206944487,0.37821,2644.1,2644.0,3.2078]
[1727206944781,1.86333078,2644.1,2644.0,3.2078]
[1727206946787,0.37821,2644.1,2644.0,3.2078]
[1727206948088,0.37825,2643.9,2643.7,3.58606]
[1727206948392,1.36106883,2643.8,2643.7,3.58607]
[1727206948586,0.3712,2643.8,2643.7,3.58607]
[1727206949385,0.74946,2643.8,2643.7,3.58607]
[1727206950587,0.3712,2643.8,2643.7,3.58607]
[1727206951092,1.7492933,2644.0,2643.8,0.37826]
[1727206951292,0.3913,2643.9,2643.8,1.60826]
[1727206952195,0.76954,2643.9,2643.8,1.23]
[1727206952396,0.37826,2643.8,2643.7,4.4378]
[1727206952591,0.37826,2643.8,2643.7,3.2078]
[1727206954303,1.3681533,2643.8,2643.7,3.2078]
[1727206954597,0.37826,2643.8,2643.7,3.2078]
[1727206954803,1.3681533,2643.8,2643.7,3.2078]
[1727206955207,0.37826,2643.8,2643.7,3.2078]
[1727206955394,1.3681533,2643.8,2643.7,3.2078]
[1727206955701,0.7594,2644.0,2643.7,8.2202]
[1727206955904,1.7492933,2644.0,2643.9,0.37824]
[1727206956092,0.7594,2644.0,2643.9,0.37824]
[1727206956293,0.3709,2644.0,2643.9,0.37824]
[1727206956695,0.3709,2644.0,2643.9,3.03824]
[1727206959207,1.36087339,2644.0,2643.9,3.03824]
[1727206959509,0.3709,2644.0,2643.9,3.03824]
[1727206959803,1.36087861,2644.0,2643.9,3.03824]
[1727206966005,0.3709,2644.0,2643.9,3.03824]
[1727206968205,0.3709,2644.0,2643.9,6.24604]
[1727206973217,0.3709,2644.0,2643.9,7.19166]
[1727206973517,0.3709,2644.0,2643.9,6.24604]
[1727206974013,1.85561682,2644.0,2643.9,6.24604]
[1727206975113,1.85561682,2644.0,2643.9,7.19166]
[1727206975416,1.85561682,2644.0,2643.9,6.24604]
[1727206975808,0.3709,2644.0,2643.9,6.24604]
[1727206978311,0.3709,2644.0,2643.9,4.81604]
[1727206978507,2.34946991,2644.0,2643.9,4.81604]
[1727206980717,2.34946991,2644.0,2643.9,3.2078]
[1727206981014,0.74913,2644.0,2643.9,3.2078]
[1727206981214,2.73246632,2644.0,2643.9,3.2078]
[1727206981816,2.73246632,2644.0,2643.8,1.36680864]
[1727206981817,0.37824,2643.9,2643.8,1.36680864]
[1727206982014,1.14244,2643.9,2643.8,0.37825]
[1727206982210,1.14244,2643.9,2643.8,1.36680864]
[1727206982818,1.14244,2643.9,2643.8,0.98855864]
[1727206983037,1.14244,2643.9,2643.7,0.98968759]
[1727206983038,0.37826,2643.8,2643.7,0.98968759]
[1727206983225,1.86635238,2643.8,2643.7,0.98968759]
[1727206983422,0.37826,2643.8,2643.7,1.36795759]
[1727206983924,0.37827,2643.7,2643.6,5.80576759]
[1727206984219,1.86631063,2643.7,2643.6,5.97600098]
[1727206985214,1.86631063,2643.7,2643.6,6.9656799]
[1727206985419,1.86631063,2643.7,2643.6,5.97600098]
[1727206985721,1.86631063,2643.7,2643.6,6.96563771]
[1727206986124,1.32396,2643.7,2643.6,3.2078]
[1727206987022,5.10636,2643.7,2643.6,3.2078]
[1727206987616,7.08963567,2643.7,2643.6,3.2078]
[1727206987812,7.08962839,2643.7,2643.6,3.2078]
[1727206988027,7.08964078,2643.7,2643.6,3.2078]
[1727206988216,5.10636,2643.7,2643.6,3.2078]
[1727206988717,7.08931109,2643.7,2643.6,3.2078]
[1727206990018,3.30691109,2643.7,2643.6,3.2078]
[1727206990824,7.08931109,2643.7,2643.6,3.2078]
[1727206992026,7.08931109,2643.7,2643.3,1.60832]
[1727206992027,0.37831,2643.4,2643.3,1.60832]
[1727206992226,1.36942917,2643.4,2643.3,4.81612]
[1727206992531,0.99111917,2643.4,2643.3,4.81612]
[1727206993720,1.36942917,2643.4,2643.3,4.81612]
[1727206994929,1.36942917,2643.4,2643.3,4.4378]
[1727206995132,1.36942917,2643.4,2643.3,4.81613]
[1727206996125,1.86498876,2643.4,2643.3,4.4378]
[1727206996530,1.86498876,2643.4,2643.3,3.2078]
[1727206996726,2.5541,2643.4,2643.3,3.2078]
[1727206997243,3.30705109,2643.4,2643.3,3.2078]
[1727206997529,1.3241,2643.4,2643.3,3.2078]
[1727206998120,0.94588,2643.2,2642.8,3.5862]
[1727206998320,3.36906966,2643.1,2642.9,0.37838]
[1727206998536,0.99046966,2643.0,2642.9,0.37838]
[1727206998830,0.37837,2643.0,2642.8,5.19259]
[1727206999022,1.36883966,2643.0,2642.9,0.37839]
[1727206999225,1.36883966,2643.0,2642.8,5.19259]
[1727206999626,0.37837,2643.0,2642.8,5.19259]
[1727207003124,0.37837,2643.0,2642.8,3.96259]
[1727207004029,1.1486,2643.1,2642.8,3.96259]
[1727207004231,0.37838,2643.0,2642.8,3.96259]
[1727207005032,0.37839,2642.9,2642.8,3.96259]
[1727207005230,0.37839,2642.9,2642.8,3.5862]
[1727207005433,0.37839,2642.9,2642.8,3.2078]
[1727207006729,2.09451,2643.1,2642.8,4.8162]
[1727207007034,1.1486,2643.1,2642.8,4.8162]
[1727207007225,0.37839,2642.9,2642.8,4.8162]
[1727207007831,0.37838,2643.0,2642.8,4.8162]
[1727207008239,0.37838,2643.0,2642.8,4.4378]
[1727207008432,0.383,2643.1,2643.0,0.37837]
[1727207008629,0.383,2643.1,2643.0,1.60837]
[1727207010242,0.75363,2643.3,2643.1,0.37835]
[1727207010437,0.3753,2643.3,2643.1,3.2078]
[1727207010635,1.86401449,2643.5,2643.2,1.23]
[1727207010636,0.99046966,2643.5,2643.2,1.23]
[1727207010839,2.13696966,2643.6,2643.4,4.4378]
[1727207011037,2.13696966,2643.6,2643.5,0.3783]
[1727207011646,2.51525966,2643.6,2643.5,0.3783]
[1727207011844,2.13696966,2643.6,2643.5,0.3783]
[1727207012140,2.51525966,2643.6,2643.4,3.2078]
[1727207012338,2.13696966,2643.6,2643.4,3.2078]
[1727207012546,2.13696966,2643.6,2643.5,0.3783]
[1727207013945,1.1465,2643.6,2643.5,0.3783]
[1727207014136,2.13696966,2643.6,2643.5,0.3783]
[1727207014337,1.1465,2643.6,2643.5,0.3783]
[1727207014750,1.52479,2643.6,2643.4,3.58611]
[1727207014938,1.1465,2643.6,2643.4,3.58611]
[1727207015134,1.1465,2643.6,2643.5,0.3783]
[1727207016043,2.13696966,2643.6,2643.5,0.3783]
[1727207016850,2.51525966,2643.6,2643.4,3.58611]
[1727207017041,1.52479,2643.6,2643.4,3.58611]
[1727207017248,2.13696966,2643.6,2643.5,0.3783]
[1727207017447,1.1465,2643.6,2643.5,0.3783]
[1727207017649,2.13696966,2643.6,2643.5,0.3783]
[1727207018247,2.63220449,2643.6,2643.5,0.3783]
[1727207018550,2.63060603,2643.6,2643.5,0.3783]
[1727207018751,1.1465,2643.6,2643.5,0.3783]
[1727207019255,2.6305589,2643.6,2643.5,0.3783]
[1727207019753,2.63080416,2643.6,2643.5,0.3783]
[1727207019944,1.1465,2643.6,2643.5,0.3783]
[1727207020146,1.52479,2643.6,2643.5,0.3783]
[1727207020749,0.3783,2643.5,2643.4,3.58611]
[1727207020944,1.48455346,2643.5,2643.4,3.58611]
[1727207022158,3.50774109,2643.6,2643.5,0.3783]
[1727207023552,3.50774109,2643.6,2643.4,3.58611]
[1727207023759,1.86369601,2643.5,2643.4,3.58611]
[1727207023957,3.12945109,2643.6,2643.4,3.58611]
[1727207024155,0.3783,2643.5,2643.4,3.58611]
[1727207024353,0.37833,2643.4,2643.2,0.365]
[1727207024561,1.48577958,2643.3,2643.2,0.365]
[1727207024751,1.87457958,2643.3,2643.2,0.365]
[1727207025159,0.3888,2643.3,2643.2,0.365]
[1727207025453,0.76713,2643.3,2643.2,0.74334]
[1727207025859,0.3888,2643.3,2643.2,0.74334]
[1727207026052,0.76713,2643.3,2643.2,0.74334]
[1727207026250,1.75793307,2643.3,2643.2,0.74334]
[1727207027555,0.76713,2643.3,2643.2,0.74334]
[1727207028662,2.25333461,2643.3,2643.2,0.74334]
[1727207029560,2.25333461,2643.3,2643.2,0.365]
[1727207029763,2.25333461,2643.3,2643.1,0.37835]
[1727207029764,0.37834,2643.2,2643.1,0.37835]
[1727207029966,2.63543614,2643.2,2643.1,3.58615]
[1727207030358,2.63543614,2643.2,2643.1,0.37835]
[1727207030953,2.63543614,2643.2,2643.1,3.58615]
[1727207031363,2.63543614,2643.2,2643.1,0.37835]
[1727207033271,1.14844,2643.2,2643.1,0.37835]
[1727207033966,0.37836,2643.1,2643.0,1.99917]
[1727207034166,1.86587251,2643.1,2643.0,1.99917]
[1727207034469,1.86587251,2643.1,2643.0,0.76917]
[1727207036372,1.86587251,2643.1,2642.9,0.98963673]
[1727207036666,1.39170442,2643.0,2642.9,1.36802673]
[1727207038070,0.4,2643.0,2642.9,1.36802673]
[1727207038868,1.77019382,2643.0,2642.9,1.36802673]
[1727207039069,0.77837,2643.0,2642.9,1.36802673]
[1727207039666,0.77837,2643.0,2642.9,0.98963673]
[1727207040368,0.37839,2642.9,2642.8,1.35993673]
[1727207040571,0.37839,2642.9,2642.5,0.98959659]
[1727207040572,0.37843,2642.6,2642.5,0.98959659]
[1727207040762,3.09647857,2642.6,2642.5,3.58623]
[1727207040960,1.86647857,2642.6,2642.5,0.37843]
[1727207041267,0.37843,2642.6,2642.5,0.37843]
[1727207041467,0.37843,2642.6,2642.4,1.38129659]
[1727207041770,1.37024616,2642.6,2642.5,0.37844]
[1727207041978,1.37024616,2642.6,2642.4,1.38129659]
[1727207041979,1.37021696,2642.6,2642.4,1.38129659]
[1727207042161,1.37021696,2642.6,2642.5,0.37844]
[1727207044576,1.37021696,2642.6,2642.4,3.97795]
[1727207045574,1.37021696,2642.6,2642.4,3.5995]
[1727207045774,0.37844,2642.5,2642.4,3.97795]
[1727207046074,0.99178696,2642.6,2642.5,0.37844]
[1727207046075,1.37022696,2642.6,2642.5,0.37844]
[1727207047672,1.37022696,2642.6,2642.4,3.97795]
[1727207047877,2.61708696,2642.7,2642.5,0.37844]
[1727207048178,1.38708696,2642.7,2642.6,1.60843]
[1727207048567,0.3953,2642.7,2642.6,1.60843]
[1727207049674,0.3953,2642.7,2642.6,0.37843]
[1727207052882,0.77371,2642.7,2642.6,0.37843]
[1727207053770,0.77371,2642.7,2642.4,3.58625]
[1727207053771,0.3953,2642.7,2642.4,3.58625]
[1727207053971,2.17608,2642.6,2642.3,0.37847]
[1727207054369,3.16786696,2642.6,2642.3,0.37847]
[1727207054787,3.16786696,2642.6,2642.2,1.36806659]
[1727207054788,0.37847,2642.4,2642.2,1.36806659]
[1727207054985,0.3891,2642.3,2642.2,0.37847]
[1727207055278,1.1588,2642.3,2642.2,0.37847]
[1727207055477,1.1588,2642.3,2642.1,0.98959659]
[1727207055478,0.37849,2642.2,2642.1,0.98959659]
[1727207055676,0.37849,2642.2,2641.8,0.3941]
[1727207055677,2.22178696,2642.2,2641.8,0.3941]
[1727207055979,1.60853,2641.9,2641.8,0.3941]
[1727207056386,0.37854,2641.8,2641.7,3.2078]
[1727207056575,0.3821,2641.8,2641.7,3.58636]
[1727207057479,0.76064,2641.8,2641.7,3.2078]
[1727207059585,0.76064,2641.8,2641.7,3.58636]
[1727207060476,1.13484,2641.8,2641.7,3.2078]
[1727207061179,1.13484,2641.8,2641.7,3.58636]
[1727207062578,1.13484,2641.8,2641.7,0.37856]
[1727207062981,0.7563,2641.8,2641.7,0.37856]
[1727207064086,1.13484,2641.8,2641.7,0.37856]
[1727207065172,1.13484,2641.8,2641.7,1.60856]
[1727207065173,0.3821,2641.8,2641.7,1.60856]
[1727207065685,0.3785,2642.1,2641.9,0.37852]
[1727207065884,1.1422,2642.1,2641.9,3.58632]
[1727207066684,0.7637,2642.1,2642.0,2.00562]
[1727207067478,1.34538929,2642.5,2642.2,0.37848]
[1727207067680,1.34538929,2642.5,2642.3,1.60847]
[1727207067681,0.3629,2642.4,2642.3,1.60847]
[1727207067891,0.3629,2642.4,2642.3,1.23]
[1727207068083,0.74136,2642.4,2642.2,3.2078]
[1727207068275,1.23,2642.3,2642.2,3.2078]
[1727207068482,1.23,2642.3,2642.1,0.37849]
[1727207068688,0.3871,2642.2,2642.1,0.37849]
[1727207070679,0.3629,2642.4,2642.0,0.3971]
[1727207070991,0.75,2642.4,2642.0,0.3971]
[1727207071290,1.12846,2642.4,2642.2,0.37848]
[1727207073183,1.12846,2642.4,2642.2,3.58628]
[1727207073891,1.12846,2642.4,2642.3,0.37847]
[1727207074398,1.12846,2642.4,2642.2,3.58628]
[1727207074695,1.12846,2642.4,2642.2,0.37848]
[1727207076087,1.12846,2642.4,2642.3,0.37847]
[1727207076587,1.12846,2642.4,2642.0,0.3971]
[1727207076895,0.37847,2642.3,2642.2,0.37848]
[1727207077889,1.12847,2642.4,2642.3,0.37847]
[1727207079693,0.37847,2642.3,2642.2,0.37848]
[1727207080197,0.75,2642.4,2642.1,0.3785]
[1727207080198,0.3785,2642.2,2642.1,0.3785]
[1727207080886,0.3785,2642.1,2642.0,0.7756]
[1727207081087,0.7734,2642.1,2642.0,0.7756]
[1727207081497,0.3949,2642.1,2642.0,0.7756]
[1727207081899,0.7689,2642.1,2642.0,0.7756]
[1727207083283,1.1474,2642.1,2642.0,0.7756]
[1727207084698,0.7689,2642.1,2642.0,3.9834]
[1727207085497,1.1474,2642.1,2642.0,3.9834]
[1727207086090,1.1474,2642.1,2642.0,0.7756]
[1727207086396,1.1474,2642.1,2642.0,0.77562]
[1727207086797,1.1474,2642.1,2642.0,0.3971]
[1727207086985,1.1474,2642.1,2642.0,0.77562]
[1727207088296,2.13778929,2642.1,2642.0,0.3971]
[1727207088792,2.13778929,2642.1,2642.0,0.77562]
[1727207089096,0.37854,2641.8,2641.7,0.37854]
[1727207089297,1.36932088,2641.8,2641.7,0.37854]
[1727207089500,0.37857,2641.7,2641.6,0.37856]
[1727207089700,0.37857,2641.7,2641.5,0.3883]
[1727207089701,0.37857,2641.6,2641.5,0.37858]
[1727207089993,0.74917,2641.6,2641.5,0.37858]
[1727207090199,0.3706,2641.6,2641.5,0.37858]
[1727207090400,0.74917,2641.6,2641.5,0.37858]
[1727207090897,0.3706,2641.6,2641.5,0.37858]
[1727207091304,0.3706,2641.6,2641.5,3.58638]
[1727207092098,0.74917,2641.6,2641.5,3.58638]
[1727207092400,0.3706,2641.6,2641.5,3.58638]
[1727207095097,0.74917,2641.6,2641.5,3.58638]
[1727207096389,1.73995088,2641.6,2641.5,3.2078]
[1727207096800,0.74917,2641.6,2641.5,3.58639]
[1727207097990,1.73995088,2641.6,2641.5,3.58639]
[1727207098794,1.73995088,2641.6,2641.5,3.2078]
[1727207099003,1.73995088,2641.6,2641.4,0.37859]
[1727207099004,0.37859,2641.5,2641.4,0.37859]
[1727207099206,0.37861,2641.4,2641.3,0.3786]
[1727207100113,1.9973,2641.5,2641.4,0.3786]